bitfinex/quotes_ETHUSD_20240707
["timestamp","ask_amount","ask_price","bid_price","bid_amount"]
[1720393532040,3.0,2945.8,2944.4,0.088948]
[1720393532857,3.0,2945.8,2944.5,0.06791321]
[1720393533049,3.0,2945.8,2944.5,0.79530933]
[1720393533350,3.0,2945.8,2944.6,0.64046742]
[1720393534042,3.0,2945.8,2944.7,0.06790859]
[1720393534282,3.0,2945.8,2944.8,0.55]
[1720393534472,3.0,2945.8,2944.8,0.64043251]
[1720393536581,3.0,2945.8,2944.8,0.09043251]
[1720393536929,3.0,2945.8,2944.5,6.55736996]
[1720393537434,3.0,2945.8,2944.6,0.09049734]
[1720393537842,3.0,2945.8,2944.7,0.55]
[1720393538242,3.0,2945.8,2944.8,0.09049734]
[1720393538438,3.0,2945.8,2944.9,0.55]
[1720393538642,3.0,2945.8,2945.0,0.09083141]
[1720393538840,3.0,2945.8,2945.1,0.55]
[1720393539252,3.0,2945.8,2945.2,0.09083141]
[1720393539459,7.2477,2945.7,2943.9,5.82997384]
[1720393539676,3.0,2945.6,2945.3,0.08177764]
[1720393539848,7.2477,2945.5,2943.9,5.82997384]
[1720393540050,3.0,2945.4,2944.3,0.08192198]
[1720393542052,3.0,2945.4,2944.4,0.55]
[1720393542254,3.0,2945.4,2944.5,0.08211116]
[1720393543006,3.0,2945.4,2944.6,0.55]
[1720393543496,3.0,2945.4,2944.7,0.08211614]
[1720393543653,3.0,2945.4,2944.7,0.08044947]
[1720393543846,3.0,2945.4,2944.2,0.20135743]
[1720393544050,3.0,2945.4,2944.3,0.62773795]
[1720393544249,0.35514303,2945.3,2944.3,0.62773795]
[1720393544683,7.3928,2945.2,2944.3,0.62773795]
[1720393545068,3.0,2945.1,2944.3,0.62773795]
[1720393546505,3.0,2945.1,2944.3,0.07773795]
[1720393546792,7.3928,2945.0,2944.4,0.06530321]
[1720393547089,7.3928,2945.0,2943.9,5.75396922]
[1720393547090,3.0,2944.9,2943.9,5.75396922]
[1720393547394,3.0,2944.9,2944.5,0.06538786]
[1720393547578,3.0,2944.9,2943.6,5.75396922]
[1720393547789,3.0,2944.9,2943.3,5.75396922]
[1720393548093,3.0,2944.9,2943.4,1.87303518]
[1720393549670,3.0,2944.9,2943.5,2.327]
[1720393549873,7.3928,2945.0,2943.9,9.3617]
[1720393550191,7.3928,2945.0,2944.0,0.55]
[1720393550585,7.3928,2945.0,2944.1,0.05012445]
[1720393550761,7.3928,2945.0,2944.2,0.55]
[1720393550957,7.3928,2945.0,2944.2,0.59845364]
[1720393551185,0.35514303,2945.3,2944.3,0.06777149]
[1720393551370,0.35514303,2945.3,2944.4,0.55]
[1720393551566,0.35514303,2945.3,2944.4,0.59673893]
[1720393552295,0.01698659,2944.5,2944.4,0.59673893]
[1720393555469,0.01698659,2944.5,2944.4,0.04673893]
[1720393555707,0.01698659,2944.5,2943.9,5.75396922]
[1720393555912,0.01698659,2944.5,2944.4,0.04214243]
[1720393556064,0.01698659,2944.5,2943.9,5.75396922]
[1720393556265,0.01698659,2944.5,2944.0,0.61753935]
[1720393557105,0.01698659,2944.5,2944.1,0.55]
[1720393557411,3.0,2944.9,2944.1,0.55]
[1720393557615,3.0,2944.9,2944.2,0.04214243]
[1720393558609,0.01698659,2944.3,2944.2,0.04214243]
[1720393560691,0.01698659,2944.3,2944.2,7.53674243]
[1720393560874,0.01698659,2944.3,2944.2,12.05495637]
[1720393561394,0.01698659,2944.3,2944.2,15.97575637]
[1720393561577,0.01698659,2944.3,2944.2,12.05495637]
[1720393562401,0.01698659,2944.3,2944.2,8.40295637]
[1720393562600,0.01698659,2944.3,2944.2,0.04214243]
[1720393562989,0.01698659,2944.3,2943.9,5.75396922]
[1720393563219,0.01698659,2944.3,2944.2,0.04181888]
[1720393563419,0.01698659,2944.3,2943.9,5.75396922]
[1720393563585,0.01698659,2944.3,2944.2,0.04181888]
[1720393563796,0.01698659,2944.3,2943.9,5.75396922]
[1720393564120,0.01698659,2944.3,2944.0,1.26221692]
[1720393564331,0.01698659,2944.3,2944.0,0.04181888]
[1720393564489,0.01698659,2944.3,2943.8,6.8682]
[1720393564688,0.01698659,2944.3,2944.1,0.04181888]
[1720393564926,0.01698659,2944.3,2943.9,0.55]
[1720393565093,0.01698659,2944.3,2944.2,0.04181888]
[1720393565451,0.01698659,2944.3,2943.5,5.75396922]
[1720393565637,0.01698659,2944.3,2943.4,8.45682692]
[1720393565638,0.01698659,2944.3,2944.2,0.04181888]
[1720393565929,0.01698659,2944.3,2943.6,7.17504883]
[1720393566109,0.01698659,2944.3,2944.2,0.04181888]
[1720393566317,0.01698659,2944.3,2943.6,7.17504883]
[1720393566493,0.01698659,2944.3,2944.2,0.04181888]
[1720393566695,0.01698659,2944.3,2943.6,5.75396922]
[1720393566996,0.01698659,2944.3,2944.2,0.04181888]
[1720393567192,0.01698659,2944.3,2943.3,5.75396922]
[1720393567193,7.23438659,2944.3,2943.3,5.75396922]
[1720393567393,3.39,2943.9,2942.6,5.75396922]
[1720393567593,8.06138778,2943.8,2943.4,0.03627008]
[1720393567803,1.01558778,2943.7,2942.3,5.75396922]
[1720393568089,1.01533682,2943.7,2942.4,0.03487582]
[1720393568335,10.0458,2943.8,2942.4,0.03487582]
[1720393568523,1.01531912,2943.7,2942.4,0.03487582]
[1720393568703,1.01531912,2943.7,2942.5,7.168]
[1720393569231,1.01531912,2943.7,2942.6,0.03487582]
[1720393569537,0.01698659,2943.5,2942.2,0.1088539]
[1720393569702,7.4749,2943.4,2942.7,0.03487582]
[1720393569906,7.4749,2943.4,2942.2,0.1088539]
[1720393569907,4.01531912,2943.3,2942.2,0.1088539]
[1720393570103,7.4749,2943.1,2942.2,0.1088539]
[1720393570340,1.01531912,2943.2,2942.3,0.03487582]
[1720393570341,7.4749,2942.9,2942.3,0.03487582]
[1720393570505,1.01531912,2942.8,2942.2,0.1088539]
[1720393570833,4.01531912,2942.8,2942.2,0.1088539]
[1720393571132,7.1364,2942.6,2942.2,0.1088539]
[1720393571295,1.01497329,2942.5,2942.2,0.1088539]
[1720393571492,1.01497329,2942.5,2940.5,3.102]
[1720393571493,1.5,2940.2,2940.1,3.17507094]
[1720393571707,1.5,2940.2,2939.2,0.1088539]
[1720393571708,9.08656856,2940.2,2939.2,0.1088539]
[1720393571910,9.08656856,2940.2,2935.5,0.71131396]
[1720393571911,1.5,2937.4,2935.5,0.71131396]
[1720393572162,1.5,2937.4,2935.1,1.72323335]
[1720393572163,6.92,2937.2,2935.1,1.72323335]
[1720393572309,5.42,2937.2,2935.0,51.70389434]
[1720393572509,5.42,2937.2,2935.0,50.0]
[1720393572510,4.18091518,2937.1,2935.0,50.0]
[1720393572736,1.18085966,2937.0,2935.9,3.41171964]
[1720393572973,3.21412335,2936.5,2935.9,3.7528916]
[1720393573104,4.16188416,2936.4,2935.9,3.41171964]
[1720393573305,3.0,2937.1,2935.9,3.41171964]
[1720393573506,2.02,2936.3,2935.9,3.41171964]
[1720393573750,3.47032112,2936.9,2935.9,3.41171964]
[1720393573904,3.21408676,2937.6,2935.9,3.41171964]
[1720393574255,3.0,2937.5,2936.0,0.44019584]
[1720393574411,2.02,2938.1,2936.1,3.17009379]
[1720393574605,2.02,2938.1,2936.0,3.70610848]
[1720393575055,2.02,2938.1,2936.2,1.5]
[1720393575204,2.02,2938.1,2936.0,5.20610848]
[1720393575205,2.02,2938.1,2936.5,1.5]
[1720393575405,2.02,2938.1,2936.3,0.03364095]
[1720393575647,2.02,2938.1,2936.3,0.55]
[1720393575986,0.01703056,2936.6,2936.4,0.03364095]
[1720393576194,0.01703056,2936.6,2935.9,3.41171964]
[1720393576484,0.01703056,2936.6,2936.5,0.03364095]
[1720393576687,0.01703056,2936.6,2935.9,3.41171964]
[1720393576840,0.01703056,2936.6,2936.5,0.03364095]
[1720393577039,3.0,2937.7,2936.0,0.34117196]
[1720393577284,3.0,2937.7,2936.5,0.03364095]
[1720393577467,3.0,2937.7,2936.0,0.34117196]
[1720393577667,0.01702824,2936.6,2936.1,0.06809483]
[1720393577868,0.01702824,2936.6,2936.1,0.10173578]
[1720393578257,0.01702824,2936.6,2936.2,0.41177077]
[1720393578456,0.01702824,2936.6,2936.3,0.06809506]
[1720393578782,0.01702824,2936.6,2936.2,1.91177077]
[1720393579092,7.57059105,2938.6,2936.5,3.3408]
[1720393579093,0.35579105,2938.6,2936.5,3.3408]
[1720393579247,0.35579105,2938.6,2937.1,3.334]
[1720393579447,0.35579105,2938.6,2937.2,6.7507]
[1720393579880,0.35579105,2938.6,2937.3,0.03364095]
[1720393580945,7.2806,2940.2,2937.3,0.58364095]
[1720393581151,2.02,2939.8,2937.4,0.7334341]
[1720393581450,2.02,2939.8,2937.5,0.55]
[1720393581657,2.02,2939.8,2937.6,3.58]
[1720393581850,2.02,2939.8,2937.7,0.55]
[1720393582053,2.02,2939.8,2937.7,0.03555597]
[1720393582354,5.49032112,2939.8,2937.7,0.03555597]
[1720393582662,3.0,2939.7,2937.3,3.58]
[1720393582878,3.0,2939.7,2937.8,0.03303991]
[1720393583091,3.0,2939.7,2937.4,1.03307]
[1720393583290,3.0,2939.7,2937.9,0.03303492]
[1720393583803,3.0,2939.7,2937.4,1.03307]
[1720393583804,3.0,2939.7,2937.5,0.01981885]
[1720393584005,3.0,2939.7,2938.0,0.03317459]
[1720393584192,3.0,2939.7,2937.5,0.55]
[1720393584370,3.0,2939.7,2938.1,0.0330848]
[1720393584568,3.0,2939.7,2937.5,0.55]
[1720393585076,3.0,2939.7,2937.6,0.0330848]
[1720393585277,2.02,2938.9,2937.6,0.0330848]
[1720393585821,3.47032112,2938.8,2936.2,0.41177077]
[1720393585970,2.02,2938.0,2936.0,0.06096754]
[1720393586164,2.02,2938.0,2935.9,6.74571964]
[1720393586165,2.02,2938.0,2936.3,0.03198197]
[1720393586513,2.02,2938.0,2935.9,3.41171964]
[1720393586733,15.6581187,2937.9,2935.9,3.41171964]
[1720393586869,2.02,2937.1,2936.0,0.03198197]
[1720393587220,2.02,2937.1,2935.9,3.41171964]
[1720393587370,3.47032112,2937.0,2935.9,3.41171964]
[1720393587569,3.0,2936.9,2935.9,3.41171964]
[1720393588106,2.02,2937.1,2935.9,3.7528916]
[1720393588407,2.02,2937.1,2936.0,0.03091591]
[1720393588909,7.4767,2937.0,2936.0,0.03091591]
[1720393589203,7.4767,2937.0,2935.9,3.41171964]
[1720393589204,1.5,2936.8,2935.9,3.41171964]
[1720393589517,1.5,2936.4,2935.0,50.0]
[1720393589670,6.94,2935.8,2935.0,50.0]
[1720393589870,3.4,2935.6,2935.1,0.03091591]
[1720393590169,1.5,2935.1,2935.0,35.17171591]
[1720393590398,1.5,2935.1,2935.0,10.13075646]
[1720393590610,9.54990974,2935.1,2935.0,2.39086227]
[1720393590815,9.9476187,2935.1,2935.0,2.39086227]
[1720393591547,5.44,2935.8,2935.0,2.39086227]
[1720393591706,2.02,2935.8,2935.1,0.23908623]
[1720393592043,3.334,2937.9,2935.1,0.23908623]
[1720393592044,1.5,2937.4,2935.1,0.23908623]
[1720393592188,5.46829895,2936.7,2935.1,0.23908623]
[1720393592692,5.46829895,2936.7,2935.2,0.55]
[1720393592892,2.02,2936.7,2935.3,0.06811959]
[1720393593103,3.21260668,2938.8,2935.7,3.334]
[1720393593432,2.02,2938.1,2935.8,1.1321162]
[1720393593635,2.02,2938.1,2936.3,3.334]
[1720393593817,2.02,2938.1,2936.4,0.0680888]
[1720393594014,2.02,2938.1,2936.5,0.55]
[1720393594442,0.04836885,2938.0,2935.8,4.06402]
[1720393594846,0.04836885,2938.0,2935.9,0.55]
[1720393595158,0.04836885,2938.0,2936.3,3.6748]
[1720393595458,0.06746958,2938.0,2936.4,0.8908]
[1720393595606,0.06746958,2938.0,2936.5,0.06808555]
[1720393595811,0.06746958,2938.0,2936.6,0.55]
[1720393596649,3.06746958,2938.0,2936.6,0.55]
[1720393597745,3.06746958,2938.0,2936.7,0.02461267]
[1720393597944,3.06746958,2938.0,2936.6,0.55]
[1720393598156,0.06746958,2938.0,2936.6,0.55]
[1720393598304,3.28278839,2938.0,2936.6,0.55]
[1720393598507,3.28291832,2938.0,2936.6,0.55]
[1720393598822,1.18045333,2937.9,2936.6,0.55]
[1720393599027,3.28291832,2938.0,2936.6,0.55]
[1720393599228,3.21544874,2937.7,2936.6,0.55]
[1720393599409,4.39583538,2937.6,2936.6,0.55]
[1720393599608,3.21544874,2937.6,2936.7,7.4321]
[1720393599810,0.01910073,2937.8,2936.7,7.4321]
[1720393599811,3.21544874,2937.7,2936.8,1.34821]
[1720393600069,0.01910073,2937.5,2935.9,7.4321]
[1720393600270,3.21544874,2936.2,2935.1,7.67118623]
[1720393600580,3.21544874,2936.0,2935.1,7.67118623]
[1720393600711,4.39586216,2935.9,2935.2,1.00620485]
[1720393600920,3.21544874,2936.3,2935.2,1.00620485]
[1720393601137,2.02,2936.8,2935.2,1.00620485]
[1720393601138,3.21544874,2935.9,2935.3,0.3408]
[1720393601451,3.21544874,2935.7,2935.1,7.67118623]
[1720393601656,3.21281213,2935.4,2935.1,7.67118623]
[1720393601951,0.01910073,2936.1,2935.1,7.67118623]
[1720393602119,2.02,2936.8,2935.2,1.00620485]
[1720393602120,0.01910073,2935.8,2935.2,1.00620485]
[1720393602711,1.18098405,2935.7,2935.2,1.00620485]
[1720393602913,1.18098405,2935.6,2935.2,1.00620485]
[1720393603113,0.01910073,2935.8,2935.2,1.00620485]
[1720393603337,1.18108941,2935.7,2935.1,7.4321]
[1720393603564,0.01910073,2935.8,2935.1,7.4321]
[1720393603565,1.18108941,2935.6,2935.1,7.4321]
[1720393603722,1.18108941,2935.7,2935.1,7.4321]
[1720393603920,0.01910073,2935.6,2935.1,7.4321]
[1720393604168,1.18108941,2935.5,2934.2,0.00456956]
[1720393604871,0.3745836,2935.6,2934.2,0.00456956]
[1720393604872,1.18135083,2935.4,2934.2,0.00456956]
[1720393605154,0.3745836,2935.6,2934.2,0.00456956]
[1720393605155,1.18135083,2935.3,2934.2,0.00456956]
[1720393605355,1.18134445,2935.2,2934.2,0.00456956]
[1720393605559,1.18134445,2935.1,2934.2,0.05722517]
[1720393605717,1.18134445,2935.1,2934.2,0.00456956]
[1720393605915,1.18129362,2935.1,2934.2,0.00456956]
[1720393606114,1.18129362,2935.1,2934.4,0.3408]
[1720393606315,1.18132303,2935.1,2934.4,0.3408]
[1720393606555,1.18132303,2935.1,2934.3,5.75396922]
[1720393607548,1.18132303,2935.1,2934.4,0.3408]
[1720393607758,0.3745836,2935.6,2935.0,9.20606227]
[1720393607966,1.18120798,2935.5,2935.0,10.1266685]
[1720393608120,0.3745836,2935.6,2935.1,0.55]
[1720393608321,0.3745836,2935.6,2935.0,2.39086227]
[1720393608830,1.181142,2935.5,2935.0,2.39086227]
[1720393609021,0.3745836,2935.6,2935.0,2.39086227]
[1720393609022,1.181142,2935.4,2935.1,0.55]
[1720393609389,0.3745836,2935.6,2935.0,2.39086227]
[1720393609657,1.18125617,2935.5,2935.0,2.39086227]
[1720393609843,1.18125617,2935.4,2935.0,2.39086227]
[1720393610049,1.18125617,2935.5,2935.0,2.39086227]
[1720393610857,1.18127085,2935.4,2935.0,2.39086227]
[1720393611075,0.3745836,2935.6,2935.0,2.39086227]
[1720393611226,1.18123526,2935.5,2935.0,2.39086227]
[1720393611417,1.18123526,2935.4,2935.0,2.39086227]
[1720393611622,0.3745836,2935.6,2935.2,7.0892]
[1720393612421,0.3745836,2935.6,2935.3,0.55]
[1720393613441,3.4,2937.4,2935.3,0.55]
[1720393613637,0.35576732,2936.9,2935.4,0.06811266]
[1720393613835,1.18081229,2936.8,2935.5,0.55]
[1720393614141,1.18081229,2936.7,2935.6,0.06811404]
[1720393614318,3.4,2937.4,2935.5,0.55]
[1720393614319,1.18077861,2936.6,2935.7,0.55]
[1720393614540,1.18077861,2936.5,2935.5,0.55]
[1720393614741,3.4,2937.4,2935.6,0.06811406]
[1720393615050,4.18079009,2937.3,2935.7,0.55]
[1720393615250,1.18079009,2937.2,2935.8,0.06811403]
[1720393615490,1.18079009,2937.1,2935.9,0.55]
[1720393615702,1.18079009,2937.0,2935.9,0.55]
[1720393615842,1.18079009,2936.9,2935.9,0.55]
[1720393616040,3.0,2937.3,2935.9,0.55]
[1720393616041,1.18079009,2936.8,2935.9,0.55]
[1720393616300,3.0,2937.3,2935.9,0.55]
[1720393616301,1.18079009,2936.7,2935.9,0.55]
[1720393616455,1.18079009,2936.6,2935.9,0.55]
[1720393616647,1.18079009,2936.5,2935.9,0.55]
[1720393616848,1.18079009,2936.4,2935.9,0.55]
[1720393617051,1.18079009,2936.3,2936.0,0.04957899]
[1720393617283,3.35666645,2937.3,2936.2,6.81]
[1720393617442,2.66821238,2937.2,2936.2,6.81]
[1720393617650,4.18059068,2937.1,2936.3,0.55]
[1720393617951,1.18059068,2937.0,2936.3,0.55]
[1720393618163,3.35666645,2937.3,2936.3,0.55]
[1720393618384,2.66821579,2937.2,2936.3,0.55]
[1720393618677,4.18054672,2937.1,2936.3,0.55]
[1720393618887,1.18054672,2937.0,2936.3,0.55]
[1720393619101,1.18054672,2937.2,2936.3,0.55]
[1720393620005,1.18054672,2937.1,2936.3,0.55]
[1720393620175,1.18054672,2937.0,2936.3,0.55]
[1720393620502,1.18054672,2936.9,2936.3,0.55]
[1720393620675,1.18052705,2936.8,2936.3,0.55]
[1720393620899,1.18052705,2936.7,2936.3,0.55]
[1720393621105,0.35663285,2937.9,2936.3,1.32008]
[1720393621300,2.66787958,2937.8,2936.3,0.55]
[1720393621513,5.66787958,2937.7,2936.3,0.55]
[1720393621724,5.66787958,2937.6,2936.3,0.55]
[1720393621997,2.66787958,2937.5,2936.3,0.55]
[1720393622234,5.66787958,2937.4,2936.3,0.55]
[1720393622527,1.18047769,2937.3,2936.3,1.32008]
[1720393622739,1.18047769,2937.9,2936.3,1.32008]
[1720393622891,2.66783864,2937.8,2936.3,1.32008]
[1720393623092,2.66783864,2937.7,2936.4,0.847088]
[1720393623293,1.18048076,2937.6,2936.5,0.55]
[1720393623597,0.04836885,2938.0,2936.5,0.55]
[1720393623791,2.66786887,2937.9,2936.5,0.55]
[1720393624099,0.04836885,2938.0,2936.6,0.3408]
[1720393624100,1.1804774,2937.8,2936.6,0.3408]
[1720393624293,1.1804774,2937.7,2936.9,7.3404]
[1720393624588,1.1804774,2937.6,2937.0,1.31812]
[1720393624792,0.04836885,2938.0,2937.0,1.31812]
[1720393624793,1.1804774,2937.5,2937.0,1.31812]
[1720393625144,1.1804774,2937.4,2937.0,1.65892]
[1720393625440,0.04836885,2938.0,2937.0,1.65892]
[1720393625595,1.18008792,2937.9,2937.0,1.65892]
[1720393625791,0.04836885,2938.0,2937.0,1.65892]
[1720393625792,1.18008792,2937.8,2937.1,1.240732]
[1720393626011,1.18008792,2937.7,2937.2,0.55]
[1720393626337,0.04836885,2938.0,2937.2,0.55]
[1720393626630,1.18000822,2937.9,2937.2,0.55]
[1720393626788,0.04836885,2938.0,2937.2,0.55]
[1720393626789,1.18000822,2937.8,2937.2,0.55]
[1720393627006,0.04836885,2938.0,2937.2,0.55]
[1720393627007,0.04836885,2938.0,2937.3,0.20312412]
[1720393627202,0.04836885,2938.0,2937.4,0.55]
[1720393627421,0.04836885,2938.0,2937.5,0.02404928]
[1720393627617,3.35655977,2939.2,2937.5,0.02426932]
[1720393627827,2.66675057,2939.1,2937.5,0.06807146]
[1720393628033,5.66675057,2939.0,2937.7,7.2768]
[1720393628276,1.17997813,2938.9,2937.8,1.40074911]
[1720393628554,2.66671319,2938.8,2937.7,7.2768]
[1720393628712,1.48673506,2938.7,2937.7,7.2768]
[1720393628911,1.17997813,2938.6,2937.7,7.2768]
[1720393629115,4.17997813,2938.6,2937.8,0.55]
[1720393629433,1.17997813,2938.5,2937.8,0.55]
[1720393629645,0.35655977,2939.2,2937.8,0.55]
[1720393629953,1.18003228,2938.4,2937.8,0.55]
[1720393630116,1.18003228,2938.3,2937.8,1.33268]
[1720393630315,0.40302101,2939.2,2937.9,0.06806638]
[1720393630513,1.17987852,2939.1,2938.0,0.55]
[1720393630853,1.17987852,2939.0,2938.1,0.06806613]
[1720393631000,1.17987852,2939.1,2938.2,0.55]
[1720393631198,1.73602402,2940.2,2938.4,7.4192]
[1720393631397,7.45,2940.6,2938.5,0.06805427]
[1720393631398,2.71256792,2940.1,2938.5,0.06805427]
[1720393631701,2.66610668,2940.0,2938.6,0.55]
[1720393631923,0.04646124,2940.1,2938.6,0.55]
[1720393631924,2.66610668,2939.9,2938.6,0.55]
[1720393632138,1.17969322,2939.8,2938.6,0.55]
[1720393632351,1.17969322,2939.7,2938.6,0.55]
[1720393632508,0.04646124,2940.1,2938.6,0.55]
[1720393632707,0.04646124,2940.1,2938.5,0.55]
[1720393632942,2.66600489,2940.0,2938.6,0.17]
[1720393633153,1.48635671,2939.9,2938.6,0.17]
[1720393633448,1.17977175,2939.8,2938.6,0.17]
[1720393633614,4.17977175,2939.8,2938.6,0.17]
[1720393633798,1.17977175,2939.7,2938.6,0.17]
[1720393633997,1.17977175,2939.6,2938.6,0.17]
[1720393634250,2.66643656,2939.5,2938.6,0.17]
[1720393634416,2.71318209,2939.4,2938.6,0.17]
[1720393634736,5.66672085,2939.3,2938.6,0.17]
[1720393634960,2.66672085,2939.2,2938.6,0.17]
[1720393635129,5.66672085,2939.1,2938.6,0.17]
[1720393635302,2.71318209,2939.0,2938.6,0.17]
[1720393635499,5.71318209,2938.9,2938.6,0.17]
[1720393635695,5.66672085,2938.8,2938.6,0.17]
[1720393635908,0.04646124,2938.9,2938.6,0.17]
[1720393636103,1.18001475,2938.8,2938.6,0.17]
[1720393636431,1.17994368,2938.7,2938.6,0.17]
[1720393637012,1.73462951,2940.1,2938.6,0.17]
[1720393637228,2.71291515,2940.0,2938.7,7.4192]
[1720393637556,2.66645391,2939.9,2938.7,7.4192]
[1720393637707,1.17984686,2939.8,2938.7,7.4192]
[1720393638056,2.6663204,2939.7,2938.7,7.4192]
[1720393638207,2.66634916,2939.6,2938.6,0.17]
[1720393638406,2.7128104,2939.5,2938.6,0.17]
[1720393638608,4.17984686,2939.4,2938.6,0.17]
[1720393638813,1.17984686,2939.3,2938.6,0.17]
[1720393639016,0.04646124,2939.5,2938.6,0.17]
[1720393639017,1.17984686,2939.2,2938.6,0.17]
[1720393639222,1.17980976,2939.1,2938.6,0.17]
[1720393639569,1.17980976,2939.0,2938.6,0.17]
[1720393639849,0.04646124,2939.5,2938.6,0.17]
[1720393640048,1.17968692,2939.4,2938.7,7.4242]
[1720393640208,0.3565306,2940.4,2938.7,8.18362]
[1720393640209,1.17968692,2939.3,2938.7,8.18362]
[1720393640410,0.3565306,2940.4,2938.7,8.18362]
[1720393640750,2.66585767,2940.3,2938.7,8.18362]
[1720393640958,2.66585767,2940.2,2938.7,8.18362]
[1720393641129,4.17958304,2940.1,2938.7,8.18362]
[1720393641337,1.17958304,2940.0,2938.9,6.8742]
[1720393641519,0.40299184,2940.4,2939.0,0.8908]
[1720393641520,1.17958304,2939.9,2939.0,0.8908]
[1720393641721,0.04646124,2940.4,2939.2,0.3408]
[1720393641932,1.17935775,2940.3,2939.4,6.8742]
[1720393642153,1.17935775,2940.2,2939.5,0.7765]
[1720393642359,0.35655922,2941.0,2939.7,6.8742]
[1720393642559,0.35655922,2941.0,2939.8,0.55]
[1720393642560,1.17919331,2940.9,2939.8,0.55]
[1720393642759,0.34020131,2942.0,2939.8,0.55]
[1720393642930,0.35648189,2941.4,2939.7,6.8742]
[1720393643138,2.66495157,2941.3,2939.7,5.8752]
[1720393643343,4.16495157,2941.2,2939.7,5.8752]
[1720393643540,2.66495157,2941.1,2939.7,5.8752]
[1720393643731,2.66495157,2941.0,2939.7,5.8752]
[1720393643918,0.35655345,2941.3,2939.7,5.8752]
[1720393643919,1.17936784,2940.9,2939.7,5.8752]
[1720393644131,1.17936784,2940.8,2939.7,5.8752]
[1720393644330,1.17936784,2941.2,2939.7,5.8752]
[1720393644572,2.66542777,2941.1,2939.7,5.8752]
[1720393644860,5.66542777,2941.0,2939.7,5.8752]
[1720393645017,1.17936784,2940.9,2939.7,5.8752]
[1720393645220,1.17936784,2941.1,2939.7,5.8752]
[1720393645419,4.17936784,2941.2,2939.7,5.8752]
[1720393645663,1.85655345,2941.3,2939.7,5.8752]
[1720393645664,5.66568544,2941.1,2939.7,5.8752]
[1720393645909,1.17947363,2941.0,2939.7,5.8752]
[1720393646163,4.1794831,2941.2,2939.7,5.8752]
[1720393646364,1.1794831,2941.1,2939.7,5.8752]
[1720393646524,1.1794831,2941.0,2939.7,5.8752]
[1720393646721,0.35655345,2941.3,2939.7,5.8752]
[1720393646722,1.1794831,2940.9,2939.7,5.8752]
[1720393646922,1.17929524,2940.8,2939.7,6.46272]
[1720393647118,1.17929524,2940.7,2939.8,0.55]
[1720393647353,1.17929524,2940.6,2939.8,0.55]
[1720393647551,1.17929524,2940.5,2939.8,0.55]
[1720393647760,7.45,2942.2,2939.8,0.55]
[1720393647982,0.35649093,2941.6,2939.9,0.701272]
[1720393648277,1.17907959,2941.5,2940.0,0.55]
[1720393648423,0.35646589,2941.5,2940.0,0.55]
[1720393648825,0.35646589,2941.5,2939.7,5.8752]
[1720393648826,1.17913193,2941.4,2939.7,5.8752]
[1720393649061,1.17913193,2941.3,2939.7,5.8752]
[1720393649264,1.17913193,2941.4,2939.7,5.8752]
[1720393649435,1.17913193,2941.3,2939.7,5.8752]
[1720393649763,6.71765561,2941.2,2939.7,5.8752]
[1720393649924,2.66525561,2941.1,2939.7,5.8752]
[1720393650129,5.5524,2941.2,2939.0,7.0682]
[1720393650130,8.66525561,2941.0,2939.0,7.0682]
[1720393650358,1.5,2940.8,2939.0,7.0682]
[1720393650566,1.5,2940.8,2938.2,5.75396922]
[1720393650567,1.5,2940.4,2938.4,7.0682]
[1720393650875,2.66566513,2940.3,2938.4,7.0682]
[1720393651021,1.17913193,2940.2,2938.4,7.0682]
[1720393651227,4.17913193,2940.3,2938.4,7.0682]
[1720393651424,2.66569893,2940.2,2938.4,7.0682]
[1720393651650,5.66569893,2940.1,2938.4,7.0682]
[1720393651935,4.16670648,2940.0,2938.4,7.0682]
[1720393652187,1.5,2939.8,2938.4,7.0682]
[1720393652476,2.66689818,2939.7,2937.8,7.4488]
[1720393652769,4.18004344,2939.6,2937.8,7.4488]
[1720393652925,1.18004344,2939.5,2937.8,7.4488]
[1720393653328,1.18004344,2939.4,2937.8,7.4488]
[1720393653558,3.0,2939.7,2937.8,7.4488]
[1720393653559,1.18004344,2939.6,2937.8,7.4488]
[1720393653869,1.18004344,2939.5,2937.8,7.4488]
[1720393654041,1.18004344,2939.6,2937.8,7.4488]
[1720393654374,1.18004344,2939.5,2937.8,7.4488]
[1720393654577,1.18004344,2939.4,2938.7,7.3813]
[1720393654730,1.72847834,2940.8,2938.8,0.75513]
[1720393654731,1.18004344,2939.3,2938.8,0.75513]
[1720393654932,1.18004344,2939.2,2938.8,0.75513]
[1720393655169,1.17980996,2939.1,2938.7,7.3813]
[1720393655478,1.17980996,2939.0,2938.7,7.3813]
[1720393655685,7.45,2940.5,2938.8,0.55]
[1720393656003,1.5,2941.2,2938.8,0.55]
[1720393656206,1.5,2941.2,2938.9,0.79313]
[1720393656410,1.5,2941.2,2939.0,0.55]
[1720393656995,3.0,2941.2,2939.0,0.55]
[1720393657394,3.0,2941.2,2938.7,7.3813]
[1720393657395,3.0,2941.0,2938.7,7.3813]
[1720393657567,3.0,2941.0,2938.8,0.55]
[1720393658105,1.5,2940.8,2938.7,8.13643]
[1720393658254,1.5,2940.8,2938.7,7.3813]
[1720393658255,4.5,2940.8,2938.7,7.3813]
[1720393658471,1.73538743,2940.7,2938.7,7.3813]
[1720393658674,3.0,2940.7,2938.7,7.3813]
[1720393658871,3.0,2940.8,2938.7,7.3813]
[1720393659122,3.0,2940.9,2938.8,1.30513]
[1720393659433,1.73538743,2941.5,2939.0,7.5749]
[1720393659730,1.73538743,2941.5,2939.2,7.2341]
[1720393659908,4.73538743,2941.6,2939.3,0.77841]
[1720393660094,4.73538743,2941.6,2939.4,0.55]
[1720393660095,1.73538743,2941.5,2939.4,0.55]
[1720393660426,1.73538743,2941.3,2939.4,0.55]
[1720393661023,1.73538743,2941.4,2939.4,0.55]
[1720393661212,4.73538743,2941.5,2939.4,0.55]
[1720393661414,4.73837952,2941.5,2939.4,0.55]